fUSD/lending_fUSD_20240624
["ID","MTS","AMOUNT","RATE_DAILY","PERIOD"]
[330320543,1719258058856,-624.5633801,0.00040001,30]
[330320544,1719258058882,-918.50730339,0.00040022,30]
[330320545,1719258058907,-161.57197413,0.00040039,30]
[330320546,1719258058931,-1004.43265964,0.00040056,30]
[330320547,1719258058956,-235.85988171,0.00040071,30]
[330320548,1719258058979,-154.74729486,0.00040087,30]
[330320549,1719258059004,-750.70543561,0.00040088,30]
[330320550,1719258059028,-235.85988171,0.00040099,30]
[330320551,1719258059055,-918.50730339,0.00040156,30]
[330320552,1719258059082,-154.95068439,0.00040165,30]
[330320553,1719258059104,-150.0303075,0.00040176,30]
[330320554,1719258059127,-155.67775372,0.00040209,30]
[330320555,1719258059150,-171.35581756,0.00040215,30]
[330320556,1719258059175,-150.0,0.00040242,120]
[330320557,1719258059199,-166.6666667,0.00040267,30]
[330320558,1719258059225,-203.77581922,0.00040279,30]
[330320559,1719258059250,-167.42023258,0.00040283,30]
[330320560,1719258059274,-624.5633801,0.000403,30]
[330320561,1719258059299,-203.77581922,0.00040334,30]
[330320562,1719258059325,-150.0,0.00040383,120]
[330320563,1719258059351,-200.0,0.0004041,80]
[330320564,1719258059375,-166.66666668,0.00040439,30]
[330320565,1719258059399,-155.42303972,0.00040447,30]
[330320566,1719258059422,-166.66666666,0.00040458,30]
[330320567,1719258059445,-2322.85647632,0.00040466,30]
[330320568,1719258059469,-279.21713201,0.00040497,30]
[330320569,1719258059494,-453.41165864,0.00040563,30]
[330320570,1719258059518,-154.29479996,0.00040573,30]
[330320571,1719258059542,-2322.85647632,0.00040614,30]
[330320572,1719258059570,-203.77581922,0.00040639,30]
[330320573,1719258059597,-150.0,0.00040678,120]
[330320574,1719258059623,-2524.0,0.000407,81]
[330320575,1719258059647,-750.70543561,0.00040706,30]
[330320576,1719258059671,-5395.65633483,0.00040724,30]
[330320577,1719258059695,-154.95068439,0.00040733,30]
[330320578,1719258059719,-279.21713201,0.00040755,30]
[330320579,1719258059742,-453.41165864,0.00040762,30]
[330320580,1719258059764,-624.5633801,0.00040767,30]
[330320581,1719258059787,-154.95068439,0.00040781,30]
[330320582,1719258059811,-1335.345944,0.000408,30]
[330320583,1719258059837,-769.818519,0.000408,30]
[330320584,1719258059862,-150.0,0.00040812,120]
[330320585,1719258059886,-279.21713201,0.00040862,30]
[330320586,1719258059911,-171.35581756,0.00040892,30]
[330320587,1719258059937,-981.58349853,0.000409,120]
[330320588,1719258059963,-981.58349837,0.000409,120]
[330320589,1719258059990,-981.58349837,0.000409,120]
[330320590,1719258060018,-981.58349837,0.000409,120]
[330320591,1719258060044,-981.58349837,0.000409,120]
[330320592,1719258060070,-981.58349837,0.000409,120]
[330320593,1719258060098,-981.58349837,0.000409,120]
[330320594,1719258060124,-981.58349837,0.000409,120]
[330320595,1719258060149,-981.58349837,0.000409,120]
[330320596,1719258060174,-981.58349837,0.000409,120]
[330320597,1719258060199,-981.58349837,0.000409,120]
[330320598,1719258060226,-981.58349837,0.000409,120]
[330320599,1719258060252,-981.58349837,0.000409,120]
[330320600,1719258060278,-981.58349837,0.000409,120]
[330320601,1719258060303,-981.58349837,0.000409,120]
[330320602,1719258060326,-981.58349837,0.000409,120]
[330320603,1719258060356,-981.58349837,0.000409,120]
[330320604,1719258060382,-981.58349837,0.000409,120]
[330320605,1719258060408,-981.58349837,0.000409,120]
[330320606,1719258060433,-981.58349837,0.000409,120]
[330320607,1719258060457,-624.5633801,0.00040904,30]
[330320608,1719258060483,-150.0,0.00040913,120]
[330320609,1719258060507,-5395.65633483,0.00040919,30]
[330320610,1719258060531,-1004.43265964,0.00040928,30]
[330320611,1719258060554,-2658.78497765,0.00040987,46]
[330320612,1719258060586,-150.0,0.00040998,120]
[330320613,1719258060613,-50000.0,0.00041,31]
[330320614,1719258060638,-174.35003686,0.00041,60]
[330320615,1719258060664,-1516.11377748,0.00041,120]
[330320616,1719258060850,-166.66666666,0.00041037,30]
[330320617,1719258060877,-154.29479996,0.00041044,30]
[330320618,1719258060900,-918.50730339,0.00041068,30]
[330320619,1719258060925,-150.0303075,0.00041084,30]
[330320620,1719258060947,-510.0,0.00041095,120]
[330320621,1719258060970,-200.0,0.00041096,60]
[330320622,1719258060994,-1000.0,0.00041096,30]
[330320623,1719258061018,-152.0,0.00041131,31]
[330320624,1719258061043,-5395.65633483,0.00041158,30]
[330320625,1719258061069,-150.0,0.00041198,120]
[330320626,1719258061100,-155.42303972,0.00041207,30]
[330320627,1719258061124,-150.0303075,0.00041215,30]
[330320628,1719258061148,-1000.0,0.00041262,30]
[330320629,1719258061172,-1863.97639702,0.00041284,30]
[330320630,1719258061196,-399.61693296,0.00041288,30]
[330320631,1719258061220,-154.74729486,0.00041289,30]
[330320632,1719258061245,-1863.97639702,0.00041289,30]
[330320633,1719258061269,-750.70543561,0.00041308,30]
[330320634,1719258061293,-399.61693296,0.00041309,30]
[330320635,1719258061317,-5395.65633483,0.00041338,30]
[330320636,1719258061344,-510.0,0.00041369,120]
[330320637,1719258061368,-154.28020167,0.00041397,30]
[330320638,1719258061391,-576.69703455,0.000414,30]
[330320639,1719258061415,-1000.0,0.00041428,30]
[330320640,1719258061440,-624.5633801,0.00041433,30]
[330320641,1719258061464,-5395.65633483,0.00041445,30]
[330320642,1719258061487,-1004.43265964,0.00041465,30]
[330320643,1719258061510,-918.50730339,0.00041525,30]
[330320644,1719258061533,-750.70543561,0.00041571,30]
[330320645,1719258061558,-1000.0,0.00041594,30]
[330320646,1719258061596,-2322.85647632,0.00041597,30]
[330320647,1719258061621,-150.0303075,0.00041603,30]
[330320648,1719258061646,-150.0,0.00041606,120]
[330320649,1719258061670,-1863.97639702,0.00041613,30]
[330320650,1719258061693,-155.49058297,0.00041633,30]
[330320651,1719258061717,-510.0,0.00041643,120]
[330320652,1719258061739,-150.65510339,0.00041649,30]
[330320653,1719258061762,-152.0,0.00041651,31]
[330320654,1719258061785,-279.21713201,0.00041667,30]
[330320655,1719258061808,-1004.43265964,0.00041756,30]
[330320656,1719258061836,-1000.0,0.0004176,30]
[330320657,1719258061862,-150.0,0.0004179,120]
[330320658,1719258061887,-151.73126829,0.0004179,30]
[330320659,1719258061911,-392.30596212,0.000418,60]
[330320660,1719258061935,-203.77581922,0.00041905,30]
[330320661,1719258061959,-200.0,0.00041917,90]
[330320662,1719258061984,-510.0,0.00041917,120]
[330320663,1719258062007,-1000.0,0.00041926,30]
[330320664,1719258062034,-150.0,0.0004199,120]
[330320665,1719258062062,-50000.0,0.00042,32]
[330320666,1719258062088,-321.18767132,0.00042,120]
[330320667,1719258062111,-955.54955712,0.00042,120]
[330320668,1719258062138,-202.80833249,0.00042,120]
[330320669,1719258062165,-1000.0,0.00042,120]
[330320670,1719258062189,-918.50730339,0.00042001,30]
[330320671,1719258062213,-150.0,0.00042049,120]
[330320672,1719258062240,-154.29479996,0.00042071,30]
[330320673,1719258062266,-1000.0,0.00042092,30]
[330320674,1719258062291,-918.50730339,0.00042142,30]
[330320675,1719258062316,-166.66666666,0.00042159,30]
[330320676,1719258062345,-152.0,0.00042171,31]
[330320677,1719258062367,-217.50803936,0.00042191,120]
[330320678,1719258062391,-624.5633801,0.0004221,30]
[330320679,1719258062415,-1000.0,0.00042258,30]
[330320680,1719258062439,-154.29479996,0.0004229,30]
[330320681,1719258062463,-399.61693296,0.0004234,30]
[330320682,1719258062487,-282.73888058,0.00042342,30]
[330320683,1719258062511,-166.66666666,0.00042391,30]
[330320684,1719258062534,-166.6666667,0.00042417,30]
[330320685,1719258062558,-1000.0,0.00042424,30]
[330320686,1719258062587,-150.0,0.00042428,120]
[330320687,1719258062611,-1004.43265964,0.00042483,30]
[330320688,1719258062634,-750.70543561,0.00042493,30]
[330320689,1719258062658,-1171.50255243,0.00042497,120]
[330320690,1719258062682,-150.96869853,0.00042555,30]
[330320691,1719258062705,-161.07088122,0.00042573,30]
[330320692,1719258062729,-1000.0,0.0004259,30]
[330320693,1719258062753,-150.0,0.00042598,120]
[330320694,1719258062777,-150.0,0.00042613,120]
[330320695,1719258062801,-5395.65633483,0.00042615,30]
[330320696,1719258062975,-5395.65633483,0.00042647,30]
[330320697,1719258062999,-1004.43265964,0.00042649,30]
[330320698,1719258063024,-918.50730339,0.00042683,30]
[330320699,1719258063050,-152.0,0.00042692,31]
[330320700,1719258063075,-235.85988171,0.0004273,30]
[330320701,1719258063100,-279.21713201,0.00042744,30]
[330320702,1719258063127,-1000.0,0.00042756,30]
[330320703,1719258063151,-235.85988171,0.00042796,30]
[330320704,1719258063175,-317.53335377,0.000428,120]
[330320705,1719258063200,-150.03030762,0.00042823,30]
[330320706,1719258063223,-155.67775372,0.00042833,30]
[330320707,1719258063248,-918.50730339,0.00042876,30]
[330320708,1719258063272,-201.22921606,0.0004288,120]
[330320709,1719258063296,-793.2317921,0.000429,120]
[330320710,1719258063322,-791.13592473,0.000429,30]
[330320711,1719258063347,-235.85988171,0.00042914,30]
[330320712,1719258063371,-1000.0,0.00042922,30]
[330320713,1719258063396,-169.25378681,0.00042931,30]
[330320714,1719258063420,-282.73888058,0.00042979,30]
[330320715,1719258063444,-1863.97639702,0.00042987,30]
[330320716,1719258063470,-50000.0,0.00043,33]
[330320717,1719258063494,-458000.0,0.00043,60]
[330320718,1719258063518,-5395.65633483,0.00043007,30]
[330320719,1719258063543,-453.41165864,0.00043058,30]
[330320720,1719258063568,-624.5633801,0.00043064,30]
[330320721,1719258063597,-166.66666666,0.00043069,30]
[330320722,1719258063624,-1000.0,0.00043088,30]
[330320723,1719258063651,-227.76677356,0.00043098,120]
[330320724,1719258063676,-282.73888058,0.00043158,30]
[330320725,1719258063700,-166.66666668,0.00043167,30]
[330320726,1719258063726,-167.42023258,0.00043201,30]
[330320727,1719258063751,-152.0,0.00043212,31]
[330320728,1719258063774,-951.18418307,0.00043234,60]
[330320729,1719258063801,-150.0,0.00043247,120]
[330320730,1719258063826,-150.96869853,0.0004325,30]
[330320731,1719258063852,-155.42303978,0.00043254,30]
[330320732,1719258063876,-1000.0,0.00043254,30]
[330320733,1719258063900,-282.73888058,0.00043277,30]
[330320734,1719258063927,-150.0,0.00043288,120]
[330320735,1719258063951,-279.21713201,0.00043288,30]
[330320736,1719258063979,-1863.97639702,0.0004332,30]
[330320737,1719258064003,-1863.97639702,0.00043387,30]
[330320738,1719258064028,-1000.0,0.00043421,30]
[330320739,1719258064056,-200.0,0.00043424,100]
[330320740,1719258064083,-151.73126829,0.0004344,30]
[330320741,1719258064111,-624.5633801,0.00043455,30]
[330320742,1719258064140,-171.35581756,0.00043474,30]
[330320743,1719258064169,-279.21713201,0.00043501,30]
[330320744,1719258064196,-355.72825129,0.00043513,40]
[330320745,1719258064223,-611.11999404,0.00043513,40]
[330320746,1719258064251,-302.45873029,0.00043513,40]
[330320747,1719258064279,-984.05154666,0.00043513,40]
[330320748,1719258064306,-2322.85647632,0.00043533,30]
[330320749,1719258064337,-453.41165864,0.00043549,30]
[330320750,1719258064364,-500.0,0.0004356,30]
[330320751,1719258064393,-154.95068439,0.00043561,30]
[330320752,1719258064420,-282.73888058,0.00043564,30]
[330320753,1719258064449,-1000.0,0.00043587,30]
[330320754,1719258064475,-150.96869857,0.00043587,30]
[330320755,1719258064500,-203.77581922,0.00043643,30]
[330320756,1719258064525,-624.5633801,0.0004367,30]
[330320757,1719258064553,-476.01052268,0.000437,120]
[330320758,1719258064585,-399.61693296,0.0004372,30]
[330320759,1719258064613,-152.0,0.00043732,31]
[330320760,1719258064639,-2988.84724988,0.00043748,120]
[330320761,1719258064667,-1000.0,0.00043753,30]
[330320762,1719258064691,-2000.0,0.00043781,30]
[330320763,1719258064716,-464.65296524,0.000438,30]
[330320764,1719258064741,-419.03021873,0.000438,120]
[330320765,1719258064766,-532.8281663,0.000438,111]
[330320766,1719258064791,-659.27987001,0.000438,120]
[330320767,1719258064815,-202.0,0.0004381,30]
[330320768,1719258064840,-156.36316987,0.00043822,30]
[330320769,1719258064865,-500.0,0.00043835,120]
[330320770,1719258064890,-662.41,0.00043835,120]
[330320771,1719258064915,-1000.0,0.00043835,120]
[330320772,1719258064939,-500.0,0.00043835,120]
[330320773,1719258065110,-500.0,0.00043835,120]
[330320774,1719258065135,-500.0,0.00043835,120]
[330320775,1719258065160,-500.0,0.00043835,120]
[330320776,1719258065184,-500.0,0.00043835,120]
[330320777,1719258065208,-500.0,0.00043835,120]
[330320778,1719258065232,-500.0,0.00043835,120]
[330320779,1719258065256,-500.0,0.00043835,120]
[330320780,1719258065282,-506.91149888,0.00043835,120]
[330320781,1719258065307,-500.0,0.00043835,120]
[330320782,1719258065331,-500.0,0.00043835,120]
[330320783,1719258065355,-500.0,0.00043835,120]
[330320784,1719258065380,-500.0,0.00043835,120]
[330320785,1719258065404,-500.0,0.00043835,120]
[330320786,1719258065428,-500.0,0.00043835,120]
[330320787,1719258065452,-500.0,0.00043835,120]
[330320788,1719258065475,-500.0,0.00043835,120]
[330320789,1719258065500,-502.39269171,0.00043835,120]
[330320790,1719258065524,-491.24694429,0.00043835,120]
[330320791,1719258065547,-500.0,0.00043835,120]
[330320792,1719258065571,-500.0,0.00043835,120]
[330320793,1719258065601,-480.85230358,0.00043835,120]
[330320794,1719258065626,-500.0,0.00043835,120]
[330320795,1719258065651,-499.67875576,0.00043835,120]
[330320796,1719258065678,-500.0,0.00043835,120]
[330320797,1719258065702,-500.0,0.00043835,120]
[330320798,1719258065728,-181.46500895,0.00043835,120]
[330320799,1719258065752,-500.0,0.00043835,120]
[330320800,1719258065777,-212.7816248,0.00043835,120]
[330320801,1719258065801,-500.0,0.00043835,120]
[330320802,1719258065825,-500.0,0.00043835,120]
[330320803,1719258065853,-500.0,0.00043835,120]
[330320804,1719258065876,-559.84577588,0.00043835,120]
[330320805,1719258065899,-482.20814433,0.00043835,120]
[330320806,1719258065922,-500.0,0.00043835,120]
[330320807,1719258065944,-500.0,0.00043835,120]
[330320808,1719258065968,-500.0,0.00043835,120]
[330320809,1719258065991,-500.0,0.00043835,120]
[330320810,1719258066014,-1251.45,0.00043835,120]
[330320811,1719258066038,-500.0,0.00043835,120]
[330320812,1719258066062,-500.0,0.00043835,120]
[330320813,1719258066088,-500.0,0.00043835,120]
[330320814,1719258066112,-1217.29,0.00043835,120]
[330320815,1719258066135,-500.0,0.00043835,120]
[330320816,1719258066161,-929.01,0.00043835,120]
[330320817,1719258066186,-553.08458167,0.00043835,120]
[330320818,1719258066213,-500.0,0.00043835,120]
[330320819,1719258066239,-500.0,0.00043835,120]
[330320820,1719258066265,-500.0,0.00043835,120]
[330320821,1719258066293,-535.19865104,0.00043835,120]
[330320822,1719258066318,-500.0,0.00043835,120]
[330320823,1719258066343,-581.41551128,0.00043835,120]
[330320824,1719258066367,-688.25,0.00043835,120]
[330320825,1719258066395,-500.0,0.00043835,120]
[330320826,1719258066420,-500.0,0.00043835,120]
[330320827,1719258066445,-210.98,0.00043835,120]
[330320828,1719258066471,-500.0,0.00043835,120]
[330320829,1719258066498,-500.0,0.00043835,120]
[330320830,1719258066523,-500.0,0.00043835,120]
[330320831,1719258066550,-500.0,0.00043835,120]
[330320832,1719258066578,-500.0,0.00043835,120]
[330320833,1719258066607,-500.0,0.00043835,120]
[330320834,1719258066633,-500.0,0.00043835,120]
[330320835,1719258066660,-667.52,0.00043835,120]
[330320836,1719258066687,-500.0,0.00043835,120]
[330320837,1719258066712,-500.0,0.00043835,120]
[330320838,1719258066738,-500.0,0.00043835,120]
[330320839,1719258066762,-500.0,0.00043835,120]
[330320840,1719258066788,-500.0,0.00043835,120]
[330320841,1719258066814,-500.0,0.00043835,120]
[330320842,1719258066841,-500.0,0.00043835,120]
[330320843,1719258066867,-500.0,0.00043835,120]
[330320844,1719258066894,-500.0,0.00043835,120]
[330320845,1719258066917,-500.0,0.00043835,120]
[330320846,1719258066939,-500.0,0.00043835,120]
[330320847,1719258066965,-500.0,0.00043835,120]
[330320848,1719258067134,-500.0,0.00043835,120]
[330320849,1719258067159,-500.0,0.00043835,120]
[330320850,1719258067185,-500.0,0.00043835,120]
[330320851,1719258067211,-500.0,0.00043835,120]
[330320852,1719258067234,-500.0,0.00043835,120]
[330320853,1719258067258,-500.0,0.00043835,120]
[330320854,1719258067282,-500.0,0.00043835,120]
[330320855,1719258067306,-500.0,0.00043835,120]
[330320856,1719258067330,-500.0,0.00043835,120]
[330320857,1719258067358,-500.0,0.00043835,120]
[330320858,1719258067382,-500.0,0.00043835,120]
[330320859,1719258067408,-500.0,0.00043835,120]
[330320860,1719258067433,-500.0,0.00043835,120]
[330320861,1719258067457,-612.22962906,0.00043835,120]
[330320862,1719258067481,-500.0,0.00043835,120]
[330320863,1719258067504,-500.0,0.00043835,120]
[330320864,1719258067529,-500.0,0.00043835,120]
[330320865,1719258067552,-1121.16,0.00043835,120]
[330320866,1719258067578,-500.0,0.00043835,120]
[330320867,1719258067607,-500.0,0.00043835,120]
[330320868,1719258067632,-602.64,0.00043835,120]
[330320869,1719258067659,-842.98,0.00043835,120]
[330320870,1719258067684,-500.0,0.00043835,120]
[330320871,1719258067709,-500.0,0.00043835,120]
[330320872,1719258067734,-500.0,0.00043835,120]
[330320873,1719258067757,-650.41,0.00043835,120]
[330320874,1719258067782,-1257.64,0.00043835,120]
[330320875,1719258067807,-500.0,0.00043835,120]
[330320876,1719258067831,-500.0,0.00043835,120]
[330320877,1719258067856,-500.0,0.00043835,120]
[330320878,1719258067880,-500.0,0.00043835,120]
[330320879,1719258067905,-500.0,0.00043835,120]
[330320880,1719258067930,-566.47,0.00043835,120]
[330320881,1719258067954,-500.0,0.00043835,120]
[330320882,1719258067979,-500.0,0.00043835,120]
[330320883,1719258068002,-500.0,0.00043835,120]
[330320884,1719258068042,-775.84,0.00043835,120]
[330320885,1719258068092,-500.0,0.00043835,120]
[330320886,1719258068142,-522.53825615,0.00043835,120]
[330320887,1719258068184,-500.0,0.00043835,120]
[330320888,1719258068230,-500.0,0.00043835,120]
[330320889,1719258068273,-500.0,0.00043835,120]
[330320890,1719258068316,-500.0,0.00043835,120]
[330320891,1719258068354,-614.95,0.00043835,120]
[330320892,1719258068396,-500.0,0.00043835,120]
[330320893,1719258068439,-500.0,0.00043835,120]
[330320894,1719258068477,-500.0,0.00043835,120]
[330320895,1719258068516,-581.15,0.00043835,120]
[330320896,1719258068554,-500.0,0.00043835,120]
[330320897,1719258068595,-500.0,0.00043835,120]
[330320898,1719258068633,-500.0,0.00043835,120]
[330320899,1719258068670,-500.0,0.00043835,120]
[330320900,1719258068708,-500.0,0.00043835,120]
[330320901,1719258068749,-500.0,0.00043835,120]
[330320902,1719258068789,-500.0,0.00043835,120]
[330320903,1719258068830,-500.0,0.00043835,120]
[330320904,1719258068868,-500.0,0.00043835,120]
[330320905,1719258068907,-1046.88,0.00043835,120]
[330320906,1719258068948,-500.0,0.00043835,120]
[330320907,1719258068986,-500.0,0.00043835,120]
[330320908,1719258069027,-540.69310636,0.00043835,120]
[330320909,1719258069071,-1278.88,0.00043835,120]
[330320910,1719258069112,-297.74281282,0.00043835,120]
[330320911,1719258069151,-500.0,0.00043835,120]
[330320912,1719258069192,-500.0,0.00043835,120]
[330320913,1719258069231,-500.0,0.00043835,120]
[330320914,1719258069273,-500.0,0.00043835,120]
[330320915,1719258069314,-1432.07,0.00043835,120]
[330320916,1719258069355,-500.0,0.00043835,120]
[330320917,1719258069396,-500.0,0.00043835,120]
[330320918,1719258069438,-500.0,0.00043835,120]
[330320919,1719258069480,-500.0,0.00043835,120]
[330320920,1719258069523,-500.0,0.00043835,120]
[330320921,1719258069792,-500.0,0.00043835,120]
[330320922,1719258069818,-500.0,0.00043835,120]
[330320923,1719258069846,-526.24,0.00043835,120]
[330320924,1719258069872,-165.8424014,0.00043835,120]
[330320925,1719258069899,-665.68,0.00043835,120]
[330320926,1719258069924,-500.0,0.00043835,120]
[330320927,1719258069949,-500.0,0.00043835,120]
[330320928,1719258069972,-500.0,0.00043835,120]
[330320929,1719258069995,-500.0,0.00043835,120]
[330320930,1719258070020,-500.0,0.00043835,120]
[330320931,1719258070044,-522.80984445,0.00043835,120]
[330320932,1719258070070,-500.0,0.00043835,120]
[330320933,1719258070098,-681.45,0.00043835,120]
[330320934,1719258070124,-500.0,0.00043835,120]
[330320935,1719258070148,-500.0,0.00043835,120]
[330320936,1719258070172,-500.0,0.00043835,120]
[330320937,1719258070198,-500.0,0.00043835,120]
[330320938,1719258070222,-500.0,0.00043835,120]
[330320939,1719258070246,-1016.38,0.00043835,120]
[330320940,1719258070271,-500.0,0.00043835,120]
[330320941,1719258070295,-500.0,0.00043835,120]
[330320942,1719258070319,-500.0,0.00043835,120]
[330320943,1719258070344,-500.0,0.00043835,120]
[330320944,1719258070370,-500.0,0.00043835,120]
[330320945,1719258070396,-500.0,0.00043835,120]
[330320946,1719258070421,-500.0,0.00043835,120]
[330320947,1719258070445,-500.0,0.00043835,120]
[330320948,1719258070470,-500.0,0.00043835,120]
[330320949,1719258070495,-500.0,0.00043835,120]
[330320950,1719258070519,-500.0,0.00043835,120]
[330320951,1719258070543,-522.2772513,0.00043835,120]
[330320952,1719258070583,-500.0,0.00043835,120]
[330320953,1719258070611,-500.0,0.00043835,120]
[330320954,1719258070637,-500.0,0.00043835,120]
[330320955,1719258070663,-500.0,0.00043835,120]
[330320956,1719258070688,-500.0,0.00043835,120]
[330320957,1719258070712,-500.0,0.00043835,120]
[330320958,1719258070736,-500.0,0.00043835,120]
[330320959,1719258070760,-500.0,0.00043835,120]
[330320960,1719258070783,-500.0,0.00043835,120]
[330320961,1719258070808,-500.0,0.00043835,120]
[330320962,1719258070833,-500.0,0.00043835,120]
[330320963,1719258070859,-500.0,0.00043835,120]
[330320964,1719258070883,-385.03229669,0.00043835,120]
[330320965,1719258070906,-500.0,0.00043835,120]
[330320966,1719258070932,-500.0,0.00043835,120]
[330320967,1719258070956,-525.28163732,0.00043835,120]
[330320968,1719258070980,-500.0,0.00043835,120]
[330320969,1719258071004,-500.0,0.00043835,120]
[330320970,1719258071029,-500.0,0.00043835,120]
[330320971,1719258071056,-529.08203544,0.00043835,120]
[330320972,1719258071080,-500.0,0.00043835,120]
[330320973,1719258071107,-816.07,0.00043835,120]
[330320974,1719258071131,-500.0,0.00043835,120]
[330320975,1719258071157,-500.0,0.00043835,120]
[330320976,1719258071180,-500.0,0.00043835,120]
[330320977,1719258071204,-468.6289592,0.00043835,120]
[330320978,1719258071228,-1191.55,0.00043835,120]
[330320979,1719258071252,-500.0,0.00043835,120]
[330320980,1719258071280,-500.0,0.00043835,120]
[330320981,1719258071307,-500.0,0.00043835,120]
[330320982,1719258071332,-500.0,0.00043835,120]
[330320983,1719258071358,-500.0,0.00043835,120]
[330320984,1719258071383,-500.0,0.00043835,120]
[330320985,1719258071409,-500.0,0.00043835,120]
[330320986,1719258071437,-500.0,0.00043835,120]
[330320987,1719258071465,-500.0,0.00043835,120]
[330320988,1719258071492,-500.0,0.00043835,120]
[330320989,1719258071519,-507.3493998,0.00043835,120]
[330320990,1719258071547,-500.0,0.00043835,120]
[330320991,1719258071580,-1192.88,0.00043835,120]
[330320992,1719258071611,-500.0,0.00043835,120]
[330320993,1719258071637,-500.0,0.00043835,120]
[330320994,1719258071664,-497.84825,0.00043835,120]
[330320995,1719258071689,-500.0,0.00043835,120]
[330320996,1719258071716,-500.0,0.00043835,120]
[330320997,1719258071743,-534.60839512,0.00043835,120]
[330320998,1719258071769,-500.0,0.00043835,120]
[330320999,1719258071795,-500.0,0.00043835,120]
[330321000,1719258071822,-500.0,0.00043835,120]
[330321001,1719258071848,-500.0,0.00043835,120]
[330321002,1719258071874,-500.0,0.00043835,120]
[330321003,1719258071900,-500.0,0.00043835,120]
[330321004,1719258071927,-500.0,0.00043835,120]
[330321005,1719258071953,-500.0,0.00043835,120]
[330321006,1719258071979,-500.0,0.00043835,120]
[330321007,1719258072006,-500.0,0.00043835,120]
[330321008,1719258072037,-500.0,0.00043835,120]
[330321009,1719258072065,-500.0,0.00043835,120]
[330321010,1719258072092,-352.88651304,0.00043835,120]
[330321011,1719258072118,-500.0,0.00043835,120]
[330321012,1719258072144,-500.0,0.00043835,120]
[330321013,1719258072171,-500.0,0.00043835,120]
[330321014,1719258072198,-500.0,0.00043835,120]
[330321015,1719258072428,-500.0,0.00043835,120]
[330321016,1719258072462,-500.0,0.00043835,120]
[330321017,1719258072486,-500.0,0.00043835,120]
[330321018,1719258072511,-500.0,0.00043835,120]
[330321019,1719258072535,-500.0,0.00043835,120]
[330321020,1719258072559,-500.0,0.00043835,120]
[330321021,1719258072587,-500.0,0.00043835,120]
[330321022,1719258072613,-500.0,0.00043835,120]
[330321023,1719258072643,-500.0,0.00043835,120]
[330321024,1719258072668,-1453.56,0.00043835,120]
[330321025,1719258072692,-703.65,0.00043835,120]
[330321026,1719258072717,-574.53,0.00043835,120]
[330321027,1719258072743,-981.69,0.00043835,120]
[330321028,1719258072766,-307.90669369,0.00043835,120]
[330321029,1719258072790,-748.31,0.00043835,120]
[330321030,1719258072814,-876.76,0.00043835,120]
[330321031,1719258072838,-500.0,0.00043835,120]
[330321032,1719258072863,-500.0,0.00043835,120]
[330321033,1719258072888,-500.0,0.00043835,120]
[330321034,1719258072914,-500.0,0.00043835,120]
[330321035,1719258072939,-500.0,0.00043835,120]
[330321036,1719258072963,-500.0,0.00043835,120]
[330321037,1719258073000,-500.0,0.00043835,120]
[330321038,1719258073027,-500.0,0.00043835,120]
[330321039,1719258073054,-500.0,0.00043835,120]
[330321040,1719258073081,-500.0,0.00043835,120]
[330321041,1719258073109,-500.0,0.00043835,120]
[330321042,1719258073135,-500.0,0.00043835,120]